[Event "*** Titled Tuesday Blitz"]
[Site "Chess.com"]
[Date "2019.01.01"]
[Round "3"]
[White "ChainsOfFantasia"]
[Black "ckgchess"]
[Result "1/2-1/2"]
[WhiteElo "2432"]
[BlackElo "2613"]
[TimeControl "180+2"]
[EndTime "13:41:42 PST"]
[Termination "Game drawn by agreement"]

1. d4 {[%clk 0:03:01.9]} 1... Nf6 {[%clk 0:03:00.8]} 2. c4 {[%clk 0:02:58.1]}
2... g6 {[%clk 0:03:01.8]} 3. Nf3 {[%clk 0:02:59.1]} 3... Bg7 {[%clk 0:03:03.1]}
4. g3 {[%clk 0:03:01]} 4... O-O {[%clk 0:03:04.6]} 5. Bg2 {[%clk 0:03:02.9]}
5... d6 {[%clk 0:03:06.4]} 6. O-O {[%clk 0:03:04.1]} 6... Nbd7 {[%clk
0:03:07.8]} 7. Nc3 {[%clk 0:03:05.4]} 7... e5 {[%clk 0:03:09.2]} 8. h3 {[%clk
0:03:05.9]} 8... Re8 {[%clk 0:03:10.1]} 9. e4 {[%clk 0:03:02.2]} 9... exd4
{[%clk 0:03:09.2]} 10. Nxd4 {[%clk 0:03:02.6]} 10... a6 {[%clk 0:03:10.8]} 11.
Be3 {[%clk 0:02:57.8]} 11... Rb8 {[%clk 0:03:11.9]} 12. f3 {[%clk 0:02:55.8]}
12... Ne5 {[%clk 0:03:12.4]} 13. b3 {[%clk 0:02:48.6]} 13... c5 {[%clk
0:03:13.7]} 14. Nde2 {[%clk 0:02:46.9]} 14... b5 {[%clk 0:03:14.9]} 15. cxb5
{[%clk 0:02:46.4]} 15... axb5 {[%clk 0:03:15.1]} 16. Qc2 {[%clk 0:02:47.6]}
16... b4 {[%clk 0:03:15.3]} 17. Nd1 {[%clk 0:02:40.6]} 17... Ba6 {[%clk
0:03:11.7]} 18. Nf2 {[%clk 0:02:39.4]} 18... Qb6 {[%clk 0:02:10.9]} 19. Rfd1
{[%clk 0:02:31.9]} 19... Red8 {[%clk 0:02:11.3]} 20. Rd2 {[%clk 0:02:04.7]}
20... Ne8 {[%clk 0:01:55.7]} 21. Rad1 {[%clk 0:02:05]} 21... Rdc8 {[%clk
0:01:56.7]} 22. Nf4 {[%clk 0:01:57.2]} 22... Bb7 {[%clk 0:01:51.9]} 23. Nd5
{[%clk 0:01:53.7]} 23... Qd8 {[%clk 0:01:53]} 24. f4 {[%clk 0:01:53.6]} 24...
Nc6 {[%clk 0:01:52.6]} 25. e5 {[%clk 0:01:18.5]} 25... dxe5 {[%clk 0:01:42.5]}
26. fxe5 {[%clk 0:01:17.5]} 26... Nd4 {[%clk 0:01:35.9]} 27. Qc4 {[%clk
0:00:51]} 27... Bxe5 {[%clk 0:01:29.2]} 28. Ng4 {[%clk 0:00:50.8]} 28... Bg7
{[%clk 0:01:25]} 29. Bf4 {[%clk 0:00:42.5]} 29... Nd6 {[%clk 0:01:17.7]} 30. Qf1
{[%clk 0:00:32.4]} 30... Ra8 {[%clk 0:01:18.8]} 31. Be5 {[%clk 0:00:30.2]} 31...
N6f5 {[%clk 0:00:58.5]} 32. Ndf6+ {[%clk 0:00:28.2]} 32... Kh8 {[%clk
0:00:51.1]} 33. Bxb7 {[%clk 0:00:28.5]} 33... h5 {[%clk 0:00:52.9]} 34. Bxa8
{[%clk 0:00:27.2]} 34... hxg4 {[%clk 0:00:54]} 35. Nxg4 {[%clk 0:00:21.6]} 35...
Rxa8 {[%clk 0:00:51.6]} 36. Bxg7+ {[%clk 0:00:22.7]} 36... Kxg7 {[%clk
0:00:53.5]} 37. Qf4 {[%clk 0:00:24]} 37... Ne2+ {[%clk 0:00:48.5]} 38. Kh2
{[%clk 0:00:17.2]} 38... Nxf4 {[%clk 0:00:48.3]} 39. Rxd8 {[%clk 0:00:18]} 39...
Rxa2+ {[%clk 0:00:48.9]} 40. R1d2 {[%clk 0:00:19.5]} 40... Rxd2+ {[%clk
0:00:47.4]} 41. Rxd2 {[%clk 0:00:21.4]} 41... Ne6 {[%clk 0:00:49.3]} 42. Ne5
{[%clk 0:00:21.6]} 42... Nfd4 {[%clk 0:00:49.9]} 43. Rb2 {[%clk 0:00:21.6]}
43... Kf6 {[%clk 0:00:49.9]} 44. Nd3 {[%clk 0:00:22.8]} 44... Ke7 {[%clk
0:00:51]} 45. Kg2 {[%clk 0:00:23.9]} 45... Kd6 {[%clk 0:00:50.7]} 46. Kf2 {[%clk
0:00:25.2]} 46... Ng5 {[%clk 0:00:50.1]} 47. h4 {[%clk 0:00:23.4]} 47... Ne4+
{[%clk 0:00:51.4]} 48. Kg2 {[%clk 0:00:23.4]} 48... Nc3 {[%clk 0:00:47.7]} 49.
Nf4 {[%clk 0:00:21.7]} 49... Nd1 {[%clk 0:00:45.2]} 50. Rb1 {[%clk 0:00:20.8]}
50... Nc3 {[%clk 0:00:44.1]} 51. Rb2 {[%clk 0:00:21.4]} 51... Ke5 {[%clk
0:00:39.6]} 52. Nd3+ {[%clk 0:00:20.4]} 52... Kd5 {[%clk 0:00:40.5]} 53. g4
{[%clk 0:00:21.4]} 53... Nd1 {[%clk 0:00:29.3]} 54. Rb1 {[%clk 0:00:22.4]} 54...
Nc3 {[%clk 0:00:30.8]} 55. Rb2 {[%clk 0:00:23.9]} 55... Nd1 {[%clk 0:00:20.5]}
56. Rd2 {[%clk 0:00:24.6]} 56... Nc3 {[%clk 0:00:16.6]} 57. h5 {[%clk
0:00:24.6]} 57... gxh5 {[%clk 0:00:18.5]} 58. gxh5 {[%clk 0:00:25.6]} 58... Ne4
{[%clk 0:00:20.4]} 59. Rd1 {[%clk 0:00:26.1]} 59... Nf5 {[%clk 0:00:18.1]} 60.
Nxb4+ {[%clk 0:00:26.6]} 60... Ke6 {[%clk 0:00:18.8]} 61. Nc2 {[%clk 0:00:28]}
61... Kf6 {[%clk 0:00:18.6]} 62. Kf3 {[%clk 0:00:28.1]} 62... Ng5+ {[%clk
0:00:17.7]} 63. Kg4 {[%clk 0:00:27.6]} 63... Nh6+ {[%clk 0:00:16.8]} 64. Kh4
{[%clk 0:00:28.9]} 64... Nf5+ {[%clk 0:00:17.7]} 65. Kg4 {[%clk 0:00:29]} 65...
Nh6+ {[%clk 0:00:18.3]} 66. Kf4 {[%clk 0:00:29.3]} 66... Ne6+ {[%clk 0:00:19.4]}
67. Ke4 {[%clk 0:00:26.3]} 67... Kg5 {[%clk 0:00:20.6]} 68. Rd5+ {[%clk
0:00:27.1]} 68... f5+ {[%clk 0:00:16.9]} 69. Ke5 {[%clk 0:00:26.6]} 69... Nf4
{[%clk 0:00:18.3]} 70. Rd1 {[%clk 0:00:21.6]} 70... Nxh5 {[%clk 0:00:17]} 71.
Kd6 {[%clk 0:00:22.6]} 71... f4 {[%clk 0:00:15.3]} 72. Kxc5 {[%clk 0:00:22.3]}
72... f3 {[%clk 0:00:16.8]} 73. b4 {[%clk 0:00:23.6]} 73... f2 {[%clk
0:00:14.5]} 74. b5 {[%clk 0:00:23.8]} 74... Nf7 {[%clk 0:00:07.1]} 75. b6 {[%clk
0:00:24.4]} 75... Ne5 {[%clk 0:00:07.6]} 76. b7 {[%clk 0:00:25.2]} 76... Nf6
{[%clk 0:00:09]} 77. Ne3 {[%clk 0:00:21.4]} 77... Kf4 {[%clk 0:00:09.5]} 78.
Nd5+ {[%clk 0:00:20.4]} 78... Nxd5 {[%clk 0:00:09.5]} 79. Kxd5 {[%clk
0:00:22.3]} 79... Nd7 {[%clk 0:00:10.4]} 80. Kd6 {[%clk 0:00:23.4]} 80... Nb8
{[%clk 0:00:11.8]} 81. Kc7 {[%clk 0:00:23.6]} 81... Na6+ {[%clk 0:00:13.3]} 82.
Kb6 {[%clk 0:00:24.8]} 82... Nb8 {[%clk 0:00:14.2]} 83. Ra1 {[%clk 0:00:23.4]}
83... Kg3 {[%clk 0:00:11.9]} 84. Kc7 {[%clk 0:00:22.4]} 84... Na6+ {[%clk
0:00:09.9]} 85. Rxa6 {[%clk 0:00:23.2]} 85... f1=Q {[%clk 0:00:11.3]} 86. b8=Q
{[%clk 0:00:22.5]} 86... Qxa6 {[%clk 0:00:11.5]} 87. Kd7+ {[%clk 0:00:23]} 87...
Kg4 {[%clk 0:00:11.4]} 88. Qg8+ {[%clk 0:00:23.2]} 88... Kf5 {[%clk 0:00:12.1]}
89. Qf7+ {[%clk 0:00:23.2]} 89... Ke5 {[%clk 0:00:13.3]} 90. Qh5+ {[%clk
0:00:24]} 90... Kd4 {[%clk 0:00:13.9]} 91. Qd1+ {[%clk 0:00:24.3]} 91... Ke5
{[%clk 0:00:14.9]} 92. Qe1+ {[%clk 0:00:24.2]} 92... Kd5 {[%clk 0:00:15.2]} 93.
Qh1+ {[%clk 0:00:23.9]} 93... Ke5 {[%clk 0:00:16.2]} 94. Qh2+ {[%clk 0:00:25.2]}
94... Kd5 {[%clk 0:00:17.5]} 95. Qg2+ {[%clk 0:00:26.6]} 95... Ke5 {[%clk
0:00:18.8]} 96. Qg3+ {[%clk 0:00:28.1]} 96... Kd5 {[%clk 0:00:19]} 97. Qg5+
{[%clk 0:00:25.5]} 97... Ke4 {[%clk 0:00:19.3]} 98. Qg4+ {[%clk 0:00:25.2]}
98... Ke5 {[%clk 0:00:20.5]} 99. Qh5+ {[%clk 0:00:25]} 99... Ke4 {[%clk
0:00:21.4]} 100. Qh7+ {[%clk 0:00:25.4]} 100... Kd5 {[%clk 0:00:22.4]} 101. Qf7+
{[%clk 0:00:26.1]} 101... Ke5 {[%clk 0:00:22.3]} 102. Qe7+ {[%clk 0:00:26.8]}
102... Kd5 {[%clk 0:00:23.6]} 103. Qg5+ {[%clk 0:00:27.1]} 103... Kd4 {[%clk
0:00:24.6]} 104. Qg1+ {[%clk 0:00:27]} 104... Ke5 {[%clk 0:00:25.7]} 105. Qe3+
{[%clk 0:00:27.3]} 105... Kd5 {[%clk 0:00:26.9]} 106. Qb3+ {[%clk 0:00:26.7]}
106... Ke5 {[%clk 0:00:25.5]} 107. Qc3+ {[%clk 0:00:27.6]} 107... Kd5 {[%clk
0:00:26.6]} 108. Qb3+ {[%clk 0:00:26.9]} 108... Ke5 {[%clk 0:00:27.8]} 1/2-1/2

[Event "*** Titled Tuesday Blitz"]
[Site "Chess.com"]
[Date "2019.01.01"]
[Round "3"]
[White "Kangoroo3000"]
[Black "FancyPlaySyndrome"]
[Result "1-0"]
[WhiteElo "2666"]
[BlackElo "2444"]
[TimeControl "180+2"]
[EndTime "13:42:08 PST"]
[Termination "Kangoroo3000 won by resignation"]

1. d4 {[%clk 0:03:01.9]} 1... g6 {[%clk 0:03:01]} 2. c4 {[%clk 0:03:01.9]} 2...
Bg7 {[%clk 0:03:02.5]} 3. e4 {[%clk 0:03:03]} 3... d6 {[%clk 0:03:02.7]} 4. Nc3
{[%clk 0:03:03.9]} 4... e5 {[%clk 0:03:02.4]} 5. d5 {[%clk 0:03:04.5]} 5... a5
{[%clk 0:03:02.6]} 6. Be2 {[%clk 0:03:04.2]} 6... Na6 {[%clk 0:02:58.5]} 7. g4
{[%clk 0:03:00.3]} 7... Nf6 {[%clk 0:02:53.6]} 8. Be3 {[%clk 0:02:55]} 8... Nd7
{[%clk 0:02:51.5]} 9. h4 {[%clk 0:02:54.9]} 9... h6 {[%clk 0:02:48.3]} 10. h5
{[%clk 0:02:55.7]} 10... Nac5 {[%clk 0:02:23.9]} 11. f3 {[%clk 0:02:55.2]} 11...
Bf6 {[%clk 0:02:07]} 12. Nh3 {[%clk 0:02:43.9]} 12... Bh4+ {[%clk 0:02:04]} 13.
Nf2 {[%clk 0:02:43.8]} 13... Bxf2+ {[%clk 0:02:00.8]} 14. Bxf2 {[%clk
0:02:43.4]} 14... g5 {[%clk 0:01:59.8]} 15. O-O {[%clk 0:02:42.2]} 15... O-O
{[%clk 0:02:00.2]} 16. b3 {[%clk 0:02:42]} 16... Qf6 {[%clk 0:01:55]} 17. Kg2
{[%clk 0:02:36.2]} 17... Rd8 {[%clk 0:01:56.2]} 18. Qd2 {[%clk 0:02:36.8]} 18...
Nf8 {[%clk 0:01:45.1]} 19. Rfb1 {[%clk 0:02:34.3]} 19... Bd7 {[%clk 0:01:45.5]}
20. a3 {[%clk 0:02:35.2]} 20... Be8 {[%clk 0:01:43.5]} 21. Qd1 {[%clk
0:02:30.2]} 21... b6 {[%clk 0:01:21.7]} 22. b4 {[%clk 0:02:30]} 22... Nb7 {[%clk
0:01:21.3]} 23. Nb5 {[%clk 0:02:21.5]} 23... Rdc8 {[%clk 0:01:21.2]} 24. Qd2
{[%clk 0:02:15]} 24... Qd8 {[%clk 0:01:21.8]} 25. Nc3 {[%clk 0:02:13.6]} 25...
axb4 {[%clk 0:01:17.8]} 26. axb4 {[%clk 0:02:14.5]} 26... Rxa1 {[%clk
0:01:19.7]} 27. Rxa1 {[%clk 0:02:16.3]} 27... Ra8 {[%clk 0:01:21.6]} 28. Qb2
{[%clk 0:02:15.7]} 28... Qb8 {[%clk 0:01:20.2]} 29. Ra3 {[%clk 0:02:13.5]} 29...
f6 {[%clk 0:01:10]} 30. Qa2 {[%clk 0:02:13.7]} 30... Rxa3 {[%clk 0:01:10.8]} 31.
Qxa3 {[%clk 0:02:15.6]} 31... Kf7 {[%clk 0:01:12.4]} 32. Qa6 {[%clk 0:02:05.3]}
32... Ke7 {[%clk 0:01:13]} 33. Nb5 {[%clk 0:02:05.5]} 33... Kd8 {[%clk
0:01:12.3]} 34. Na7 {[%clk 0:02:01.8]} 34... Ke7 {[%clk 0:01:10.4]} 35. Nc6+
{[%clk 0:01:55.3]} 35... Bxc6 {[%clk 0:01:10.7]} 36. dxc6 {[%clk 0:01:57.2]}
36... Nd8 {[%clk 0:01:12.4]} 37. c5 {[%clk 0:01:43.9]} 37... bxc5 {[%clk
0:01:07.1]} 38. bxc5 {[%clk 0:01:44.8]} 38... Nfe6 {[%clk 0:01:06.2]} 39. cxd6+
{[%clk 0:01:45.7]} 39... cxd6 {[%clk 0:01:07.8]} 40. Bb5 {[%clk 0:01:13.4]}
40... Nc7 {[%clk 0:01:06.6]} 41. Qa5 {[%clk 0:00:40.9]} 41... Nxb5 {[%clk
0:01:06.9]} 42. Bb6 {[%clk 0:00:37.1]} 42... Nxc6 {[%clk 0:01:08]} 43. Qxb5
{[%clk 0:00:38]} 43... Qb7 {[%clk 0:01:07.6]} 44. Kg3 {[%clk 0:00:29.7]} 44...
Kf8 {[%clk 0:00:49.4]} 45. Qb3 {[%clk 0:00:29.3]} 45... Nd4 {[%clk 0:00:47.1]}
46. Qb4 {[%clk 0:00:22.9]} 46... Ne2+ {[%clk 0:00:41.9]} 47. Kf2 {[%clk
0:00:22]} 47... Nf4 {[%clk 0:00:43.2]} 48. Qxd6+ {[%clk 0:00:23.5]} 48... Kg8
{[%clk 0:00:43.8]} 49. Qd8+ {[%clk 0:00:21]} 49... Kf7 {[%clk 0:00:43.8]} 50.
Qd6 {[%clk 0:00:11.4]} 50... Qe7 {[%clk 0:00:38]} 51. Qc6 {[%clk 0:00:09.2]}
51... Ne6 {[%clk 0:00:33.9]} 52. Qd5 {[%clk 0:00:07.3]} 52... Kg7 {[%clk
0:00:33.7]} 53. Be3 {[%clk 0:00:08.2]} 53... Kf7 {[%clk 0:00:28.9]} 54. Qa8
{[%clk 0:00:06.5]} 54... Qc7 {[%clk 0:00:25]} 55. Qh8 {[%clk 0:00:05.6]} 55...
Qc2+ {[%clk 0:00:24.7]} 56. Kg3 {[%clk 0:00:05.6]} 56... Nf8 {[%clk 0:00:13.6]}
57. Qxh6 {[%clk 0:00:05.1]} 57... Qe2 {[%clk 0:00:14.8]} 58. Bf2 {[%clk
0:00:05.8]} 58... Qf1 {[%clk 0:00:16.3]} 59. Qh8 {[%clk 0:00:05.4]} 59... Qh1
{[%clk 0:00:17.7]} 60. h6 {[%clk 0:00:04.8]} 60... Ne6 {[%clk 0:00:17.1]} 61.
Qh7+ {[%clk 0:00:05.3]} 61... Kf8 {[%clk 0:00:18.1]} 62. Qg6 {[%clk 0:00:05.2]}
62... Qg2+ {[%clk 0:00:17.1]} 63. Kxg2 {[%clk 0:00:06.2]} 63... Nf4+ {[%clk
0:00:19]} 64. Kf1 {[%clk 0:00:04.9]} 64... Nxg6 {[%clk 0:00:20.9]} 65. Ke2
{[%clk 0:00:06.5]} 65... Kg8 {[%clk 0:00:22.8]} 66. Kd3 {[%clk 0:00:04.5]} 66...
Kh7 {[%clk 0:00:23.6]} 67. Ke2 {[%clk 0:00:05.5]} 67... Nf4+ {[%clk 0:00:25.5]}
68. Kf1 {[%clk 0:00:06.1]} 68... Kxh6 {[%clk 0:00:27.4]} 69. Be3 {[%clk
0:00:06.6]} 69... Ne6 {[%clk 0:00:28.7]} 70. Kf2 {[%clk 0:00:07.7]} 70... Kg6
{[%clk 0:00:30.6]} 71. Bb6 {[%clk 0:00:08.5]} 71... Kf7 {[%clk 0:00:31.9]} 72.
Be3 {[%clk 0:00:08.2]} 72... Ke8 {[%clk 0:00:33.8]} 73. Bb6 {[%clk 0:00:08.9]}
73... Kd7 {[%clk 0:00:35.1]} 74. Ke3 {[%clk 0:00:10.1]} 74... Kc6 {[%clk
0:00:36.4]} 75. Ba5 {[%clk 0:00:11.4]} 75... Kb5 {[%clk 0:00:37.5]} 76. Be1
{[%clk 0:00:11.9]} 76... Nd4 {[%clk 0:00:37.4]} 77. Bc3 {[%clk 0:00:10.7]} 77...
Kc4 {[%clk 0:00:35.7]} 78. Ba5 {[%clk 0:00:11.6]} 78... Nc6 {[%clk 0:00:34.6]}
79. Bc7 {[%clk 0:00:11.7]} 79... Kc5 {[%clk 0:00:34.1]} 80. Kf2 {[%clk
0:00:10.3]} 80... Ne7 {[%clk 0:00:32.8]} 81. Bd8 {[%clk 0:00:08.9]} 81... Ng8
{[%clk 0:00:34.3]} 82. Ke3 {[%clk 0:00:08.9]} 82... Kc6 {[%clk 0:00:35.8]} 83.
Kd3 {[%clk 0:00:09.4]} 83... Kd7 {[%clk 0:00:37.3]} 84. Ba5 {[%clk 0:00:10.3]}
84... Ne7 {[%clk 0:00:38.9]} 85. Kc4 {[%clk 0:00:09.6]} 85... Ng6 {[%clk
0:00:38.2]} 86. Kd3 {[%clk 0:00:05.2]} 86... Ke6 {[%clk 0:00:35.7]} 87. Ke3
{[%clk 0:00:06.3]} 87... Ne7 {[%clk 0:00:36.2]} 88. Bd8 {[%clk 0:00:07.1]} 88...
Nc6 {[%clk 0:00:37.1]} 89. Bb6 {[%clk 0:00:08.4]} 89... Nb4 {[%clk 0:00:38.4]}
90. Bd8 {[%clk 0:00:08.9]} 90... Kf7 {[%clk 0:00:37.6]} 91. Ba5 {[%clk
0:00:08.4]} 91... Nc6 {[%clk 0:00:38.4]} 92. Bb6 {[%clk 0:00:09.3]} 92... Ke6
{[%clk 0:00:40.3]} 93. Bc5 {[%clk 0:00:10.3]} 93... Nb8 {[%clk 0:00:40.6]} 94.
Bf8 {[%clk 0:00:11.1]} 94... Na6 {[%clk 0:00:41.8]} 95. Ba3 {[%clk 0:00:11.7]}
95... Nc7 {[%clk 0:00:42.4]} 96. Bf8 {[%clk 0:00:12.9]} 96... Nb5 {[%clk
0:00:43.7]} 97. Bb4 {[%clk 0:00:13.9]} 97... Kf7 {[%clk 0:00:45.2]} 98. Bc5
{[%clk 0:00:15]} 98... Nc7 {[%clk 0:00:47.1]} 99. Bd6 {[%clk 0:00:15.9]} 99...
Ne6 {[%clk 0:00:48.4]} 100. Bb4 {[%clk 0:00:14.7]} 100... Ke8 {[%clk 0:00:50]}
101. Bd6 {[%clk 0:00:15.4]} 101... Kd7 {[%clk 0:00:51.5]} 102. Bb4 {[%clk
0:00:16.8]} 102... Nc7 {[%clk 0:00:51.5]} 103. Ba5 {[%clk 0:00:17.5]} 103... Na6
{[%clk 0:00:52.5]} 104. Bc3 {[%clk 0:00:16.9]} 104... Kc6 {[%clk 0:00:50.5]}
105. Ba5 {[%clk 0:00:17.6]} 105... Nc5 {[%clk 0:00:49.3]} 106. Bd8 {[%clk
0:00:17.4]} 106... Nd7 {[%clk 0:00:51.2]} 107. Kd3 {[%clk 0:00:16.8]} 107... Kd6
{[%clk 0:00:51.7]} 108. Kc4 {[%clk 0:00:16.7]} 108... Ke6 {[%clk 0:00:51.4]}
109. Kd3 {[%clk 0:00:12.5]} 109... Nc5+ {[%clk 0:00:49.1]} 110. Ke3 {[%clk
0:00:13.5]} 110... Na6 {[%clk 0:00:48.1]} 111. Bb6 {[%clk 0:00:13.9]} 111... Nb4
{[%clk 0:00:49.7]} 112. Ba5 {[%clk 0:00:13.6]} 112... Nc6 {[%clk 0:00:50.9]}
113. Bb6 {[%clk 0:00:14.7]} 113... Kd7 {[%clk 0:00:52.1]} 114. Bc5 {[%clk
0:00:15.2]} 114... Ke6 {[%clk 0:00:52.5]} 115. Bb6 {[%clk 0:00:16.2]} 115... Nd8
{[%clk 0:00:54.4]} 116. Bxd8 {[%clk 0:00:17]} 116... Kf7 {[%clk 0:00:54.4]} 117.
Kd3 {[%clk 0:00:17.7]} 117... Ke6 {[%clk 0:00:56.3]} 118. Kc4 {[%clk 0:00:18.4]}
1-0

[Event "*** Titled Tuesday Blitz"]
[Site "Chess.com"]
[Date "2019.01.01"]
[Round "3"]
[White "Rashad_Zeynalli"]
[Black "Peroncio"]
[Result "0-1"]
[WhiteElo "2426"]
[BlackElo "2637"]
[TimeControl "180+2"]
[EndTime "13:43:10 PST"]
[Termination "Peroncio won by resignation"]

1. e4 {[%clk 0:03:01.9]} 1... e5 {[%clk 0:03:01.1]} 2. Nf3 {[%clk 0:03:02]} 2...
Nc6 {[%clk 0:03:02.6]} 3. d4 {[%clk 0:03:03.5]} 3... exd4 {[%clk 0:03:03.2]} 4.
Nxd4 {[%clk 0:03:05.4]} 4... Bc5 {[%clk 0:03:04.4]} 5. Nxc6 {[%clk 0:03:05.2]}
5... Qf6 {[%clk 0:03:05.2]} 6. Qf3 {[%clk 0:03:06]} 6... dxc6 {[%clk 0:03:00.5]}
7. Bc4 {[%clk 0:03:04.3]} 7... Ne7 {[%clk 0:02:27.1]} 8. Nc3 {[%clk 0:02:51.7]}
8... Bd4 {[%clk 0:02:22.9]} 9. Qxf6 {[%clk 0:02:34.1]} 9... Bxf6 {[%clk
0:02:21.2]} 10. Ne2 {[%clk 0:02:35.4]} 10... Ng6 {[%clk 0:02:20.6]} 11. f4
{[%clk 0:02:32.8]} 11... Bg4 {[%clk 0:02:12.8]} 12. h3 {[%clk 0:02:28.8]} 12...
Bh4+ {[%clk 0:02:13.3]} 13. Kf1 {[%clk 0:02:22.1]} 13... Bd7 {[%clk 0:02:14.2]}
14. g3 {[%clk 0:02:20.2]} 14... Be7 {[%clk 0:02:15.3]} 15. Kg2 {[%clk
0:02:16.3]} 15... h5 {[%clk 0:02:14.3]} 16. Be3 {[%clk 0:02:14.4]} 16... b6
{[%clk 0:01:55.8]} 17. Rad1 {[%clk 0:02:10.3]} 17... Rd8 {[%clk 0:01:56.4]} 18.
Bd4 {[%clk 0:01:57.2]} 18... f6 {[%clk 0:01:49.4]} 19. Bc3 {[%clk 0:01:56.4]}
19... Nf8 {[%clk 0:01:46.2]} 20. e5 {[%clk 0:01:53.1]} 20... c5 {[%clk 0:01:34]}
21. Rhe1 {[%clk 0:01:47]} 21... f5 {[%clk 0:01:30.7]} 22. Bd5 {[%clk 0:01:02.7]}
22... Be6 {[%clk 0:01:29.2]} 23. Bc6+ {[%clk 0:00:59.6]} 23... Kf7 {[%clk
0:01:30.3]} 24. Rxd8 {[%clk 0:00:58.7]} 24... Bxd8 {[%clk 0:01:32.2]} 25. h4
{[%clk 0:00:53.4]} 25... Ng6 {[%clk 0:01:31.4]} 26. Ng1 {[%clk 0:00:49.8]} 26...
Ne7 {[%clk 0:01:29.1]} 27. Bf3 {[%clk 0:00:48.1]} 27... Nd5 {[%clk 0:01:30.7]}
28. Bd2 {[%clk 0:00:39.5]} 28... c4 {[%clk 0:01:13.8]} 29. Nh3 {[%clk
0:00:38.7]} 29... Be7 {[%clk 0:01:10.7]} 30. Kf2 {[%clk 0:00:30.6]} 30... g6
{[%clk 0:01:09.4]} 31. Bxd5 {[%clk 0:00:20.1]} 31... Bxd5 {[%clk 0:01:09.9]} 32.
Be3 {[%clk 0:00:21.5]} 32... Ke6 {[%clk 0:01:06.3]} 33. Rd1 {[%clk 0:00:22.1]}
33... c6 {[%clk 0:00:58.4]} 34. c3 {[%clk 0:00:22.8]} 34... a5 {[%clk 0:00:58]}
35. Rd2 {[%clk 0:00:22.9]} 35... Rb8 {[%clk 0:00:57.9]} 36. Ng5+ {[%clk
0:00:20.9]} 36... Bxg5 {[%clk 0:00:58.7]} 37. hxg5 {[%clk 0:00:22.8]} 37... b5
{[%clk 0:00:55.4]} 38. Ba7 {[%clk 0:00:22.8]} 38... Rb7 {[%clk 0:00:52.6]} 39.
Bc5 {[%clk 0:00:24.2]} 39... b4 {[%clk 0:00:52.7]} 40. Bd4 {[%clk 0:00:21.7]}
40... Rb5 {[%clk 0:00:39.3]} 41. Ke1 {[%clk 0:00:19.6]} 41... c5 {[%clk
0:00:30.4]} 42. Be3 {[%clk 0:00:20.1]} 42... a4 {[%clk 0:00:30.8]} 43. a3 {[%clk
0:00:20.3]} 43... bxc3 {[%clk 0:00:31]} 44. bxc3 {[%clk 0:00:21.4]} 44... Rb3
{[%clk 0:00:32.5]} 45. Bxc5 {[%clk 0:00:13.4]} 45... Rxc3 {[%clk 0:00:33.8]} 46.
Rb2 {[%clk 0:00:14.7]} 46... Bc6 {[%clk 0:00:35.2]} 47. Rb8 {[%clk 0:00:13.2]}
47... Rxg3 {[%clk 0:00:33.7]} 48. Rg8 {[%clk 0:00:11.7]} 48... Kd5 {[%clk
0:00:31.5]} 49. Bb4 {[%clk 0:00:10.3]} 49... c3 {[%clk 0:00:23.1]} 50. Rxg6
{[%clk 0:00:08.7]} 50... Bb5 {[%clk 0:00:24.7]} 51. Rd6+ {[%clk 0:00:08.4]}
51... Ke4 {[%clk 0:00:25.8]} 52. Kf2 {[%clk 0:00:06]} 52... Rf3+ {[%clk
0:00:15.8]} 53. Kg2 {[%clk 0:00:06.8]} 53... c2 {[%clk 0:00:11.4]} 54. Bd2
{[%clk 0:00:08]} 54... Rd3 {[%clk 0:00:11.6]} 55. Rxd3 {[%clk 0:00:08.4]} 55...
Kxd3 {[%clk 0:00:12.2]} 56. Bc1 {[%clk 0:00:09.9]} 56... Ke2 {[%clk 0:00:12.2]}
57. e6 {[%clk 0:00:10.6]} 57... Be8 {[%clk 0:00:11.9]} 58. Kg3 {[%clk
0:00:09.3]} 58... Kd1 {[%clk 0:00:12.4]} 59. Bb2 {[%clk 0:00:10.4]} 59... c1=Q
{[%clk 0:00:14.3]} 60. Bxc1 {[%clk 0:00:11.8]} 60... Kxc1 {[%clk 0:00:15.4]} 61.
g6 {[%clk 0:00:12.4]} 61... Bxg6 {[%clk 0:00:14.8]} 62. Kh4 {[%clk 0:00:14.3]}
62... Be8 {[%clk 0:00:14.6]} 63. Kg5 {[%clk 0:00:15.1]} 63... Kb2 {[%clk
0:00:14.6]} 64. Kxf5 {[%clk 0:00:16.6]} 64... Kxa3 {[%clk 0:00:16.1]} 65. Kg5
{[%clk 0:00:17.6]} 65... Kb3 {[%clk 0:00:13.1]} 66. f5 {[%clk 0:00:19.5]} 66...
a3 {[%clk 0:00:12]} 67. f6 {[%clk 0:00:20.9]} 67... a2 {[%clk 0:00:13.6]} 68. f7
{[%clk 0:00:22.2]} 68... Bb5 {[%clk 0:00:09]} 69. e7 {[%clk 0:00:12.2]} 69...
a1=Q {[%clk 0:00:10.4]} 70. e8=Q {[%clk 0:00:12.6]} 70... Qg1+ {[%clk
0:00:10.2]} 71. Kh6 {[%clk 0:00:12.8]} 71... Qc1+ {[%clk 0:00:09.9]} 72. Kg7
{[%clk 0:00:09.8]} 72... Qg5+ {[%clk 0:00:10.1]} 73. Kh7 {[%clk 0:00:08.1]}
73... Qf5+ {[%clk 0:00:10.7]} 74. Kh6 {[%clk 0:00:08.7]} 74... Qf6+ {[%clk
0:00:09.5]} 75. Kxh5 {[%clk 0:00:07.5]} 75... Qf5+ {[%clk 0:00:07.9]} 76. Kh4
{[%clk 0:00:08.3]} 76... Qf4+ {[%clk 0:00:08.4]} 77. Kh5 {[%clk 0:00:09.6]}
77... Qf5+ {[%clk 0:00:06.2]} 78. Kh4 {[%clk 0:00:10.4]} 78... Qh7+ {[%clk
0:00:05.7]} 79. Kg5 {[%clk 0:00:11]} 79... Qg7+ {[%clk 0:00:06.1]} 80. Kf5
{[%clk 0:00:11.7]} 80... Bd3+ {[%clk 0:00:06.7]} 81. Kf4 {[%clk 0:00:12.9]}
81... Qd4+ {[%clk 0:00:06.9]} 82. Kg3 {[%clk 0:00:10.3]} 82... Qg1+ {[%clk
0:00:06.7]} 83. Kf3 {[%clk 0:00:11.5]} 83... Qf1+ {[%clk 0:00:07.6]} 84. Ke3
{[%clk 0:00:12]} 84... Bb5 {[%clk 0:00:03.2]} 85. Qe6+ {[%clk 0:00:10.6]} 85...
Bc4 {[%clk 0:00:04.6]} 86. Qb6+ {[%clk 0:00:10.5]} 86... Kc2 {[%clk 0:00:04.5]}
87. Qg6+ {[%clk 0:00:09.1]} 87... Kc1 {[%clk 0:00:02.8]} 88. Kd4 {[%clk
0:00:04.3]} 88... Bxf7 {[%clk 0:00:02.3]} 89. Qg5+ {[%clk 0:00:05.5]} 89... Kd1
{[%clk 0:00:03]} 90. Qg4+ {[%clk 0:00:05.7]} 90... Kc1 {[%clk 0:00:04.2]} 91.
Qg5+ {[%clk 0:00:06.9]} 91... Kb1 {[%clk 0:00:05.3]} 92. Qe3 {[%clk 0:00:06.5]}
92... Qc4+ {[%clk 0:00:05]} 93. Ke5 {[%clk 0:00:07.9]} 93... Qe6+ {[%clk
0:00:04.5]} 94. Kf4 {[%clk 0:00:08.9]} 94... Qh6+ {[%clk 0:00:05.8]} 95. Kf3
{[%clk 0:00:09.2]} 95... Bd5+ {[%clk 0:00:07.4]} 96. Ke2 {[%clk 0:00:09.6]}
96... Bc4+ {[%clk 0:00:08.8]} 97. Kd2 {[%clk 0:00:09.7]} 97... Qd6+ {[%clk
0:00:06.2]} 98. Kc3 {[%clk 0:00:09.5]} 98... Qa3+ {[%clk 0:00:06.7]} 99. Kd4
{[%clk 0:00:09.1]} 99... Qa7+ {[%clk 0:00:06]} 100. Ke4 {[%clk 0:00:10]} 100...
Bd5+ {[%clk 0:00:05.9]} 101. Kd3 {[%clk 0:00:09.4]} 101... Bc4+ {[%clk
0:00:05.2]} 102. Ke4 {[%clk 0:00:08.5]} 102... Qb7+ {[%clk 0:00:04.8]} 103. Kd4
{[%clk 0:00:08.4]} 103... Qb6+ {[%clk 0:00:04.4]} 104. Ke4 {[%clk 0:00:09.5]}
104... Bd5+ {[%clk 0:00:05.6]} 105. Kf4 {[%clk 0:00:08.8]} 105... Qh6+ {[%clk
0:00:06.6]} 106. Ke5 {[%clk 0:00:08.4]} 106... Qxe3+ {[%clk 0:00:08.4]} 0-1